fUST/lending_fUST_20251115
["ID","MTS","AMOUNT","RATE_DAILY","PERIOD"]
[394028814,1763200315770,-500.0,0.0005178,120]
[394028815,1763200315779,-500.0,0.0005178,21]
[394028816,1763200315788,-500.0,0.0005178,120]
[394028817,1763200315797,-500.0,0.0005178,120]
[394028818,1763200315806,-1298.83,0.0005178,120]
[394028819,1763200315814,-687.91,0.0005178,120]
[394028820,1763200315823,-500.0,0.0005178,120]
[394028821,1763200315833,-500.0,0.0005178,120]
[394028822,1763200315842,-1584.66,0.0005178,120]
[394028823,1763200315851,-500.0,0.0005178,120]
[394028824,1763200315860,-625.34,0.0005178,120]
[394028825,1763200315868,-500.0,0.0005178,120]
[394028826,1763200315878,-500.0,0.0005178,120]
[394028827,1763200315888,-500.0,0.0005178,120]
[394028828,1763200315897,-626.26,0.0005178,120]
[394028829,1763200315907,-335.19843362,0.0005178,120]
[394028830,1763200315916,-776.15,0.0005178,120]
[394028831,1763200315925,-500.0,0.0005178,120]
[394028832,1763200315936,-1059.33,0.0005178,120]
[394028833,1763200315946,-500.0,0.0005178,120]
[394028834,1763200315955,-2689.19,0.0005178,120]
[394028835,1763200315966,-500.0,0.0005178,120]
[394028836,1763200315976,-1158.62,0.0005178,120]
[394028837,1763200315985,-520.26,0.0005178,120]
[394028838,1763200315995,-500.0,0.0005178,120]
[394028839,1763200316006,-500.0,0.0005178,120]
[394028840,1763200316015,-777.19,0.0005178,120]
[394028841,1763200316027,-500.0,0.0005178,120]
[394028842,1763200316037,-500.0,0.0005178,120]
[394028843,1763200316047,-500.0,0.0005178,120]
[394028844,1763200316058,-1619.88,0.0005178,30]
[394028845,1763200316070,-1089.69,0.0005178,120]
[394028846,1763200316079,-500.0,0.0005178,120]
[394028847,1763200316088,-576.07,0.0005178,120]
[394028848,1763200316097,-500.0,0.0005178,120]
[394028849,1763200316106,-1298.65,0.0005178,120]
[394028850,1763200316116,-527.42,0.0005178,120]
[394028851,1763200316125,-500.0,0.0005178,120]
[394028852,1763200316134,-2380.54,0.0005178,120]
[394028853,1763200316143,-1477.9,0.0005178,120]
[394028854,1763200316151,-159.44678434,0.0005178,120]
[394028855,1763200316160,-500.0,0.0005178,120]
[394028856,1763200316169,-500.0,0.0005178,120]
[394028857,1763200316177,-979.94,0.0005178,120]
[394028858,1763200316186,-745.02,0.0005178,120]
[394028859,1763200316195,-500.0,0.0005178,120]
[394028860,1763200316205,-500.41,0.0005178,120]
[394028861,1763200316218,-500.0,0.0005178,120]
[394028862,1763200316227,-500.0,0.0005178,120]
[394028863,1763200316236,-500.0,0.0005178,120]
[394028864,1763200316245,-500.0,0.0005178,120]
[394028865,1763200316254,-507.72,0.0005178,120]
[394028866,1763200316264,-539.7,0.0005178,120]
[394028867,1763200316273,-789.21,0.0005178,120]
[394028868,1763200316284,-500.0,0.0005178,120]
[394028869,1763200316295,-500.0,0.0005178,120]
[394028870,1763200316304,-937.06,0.0005178,120]
[394028871,1763200316313,-500.0,0.0005178,120]
[394028872,1763200316322,-500.0,0.0005178,120]
[394028873,1763200316332,-523.49,0.0005178,120]
[394028874,1763200316344,-571.26,0.0005178,120]
[394028875,1763200316354,-500.0,0.0005178,120]
[394028876,1763200316363,-840.74,0.0005178,120]
[394028877,1763200316373,-207.6896241,0.0005178,120]
[394028878,1763200316382,-839.73,0.0005178,120]
[394028879,1763200316392,-500.0,0.0005178,120]
[394028880,1763200316405,-500.0,0.0005178,120]
[394028881,1763200316414,-548.3,0.0005178,120]
[394028882,1763200316423,-533.64,0.0005178,120]
[394028883,1763200316432,-500.0,0.0005178,120]
[394028884,1763200316441,-500.0,0.0005178,120]
[394028885,1763200316451,-1390.62,0.0005178,120]
[394028886,1763200316460,-500.0,0.0005178,120]
[394028887,1763200316470,-572.61,0.0005178,120]
[394028888,1763200316480,-1276.71,0.0005178,120]
[394028889,1763200316489,-1188.94,0.0005178,120]
[394028890,1763200316498,-1077.77,0.0005178,120]
[394028891,1763200316508,-500.0,0.0005178,120]
[394028892,1763200316517,-500.0,0.0005178,120]
[394028893,1763200316527,-1791.91,0.0005178,120]
[394028894,1763200316536,-500.0,0.0005178,120]
[394028895,1763200316546,-500.0,0.0005178,120]
[394028896,1763200316555,-500.0,0.0005178,120]
[394028897,1763200316564,-500.0,0.0005178,120]
[394028898,1763200316573,-500.0,0.0005178,120]
[394028899,1763200316583,-500.0,0.0005178,120]
[394028900,1763200316592,-1017.14,0.0005178,120]
[394028901,1763200316602,-500.0,0.0005178,120]
[394028902,1763200316612,-500.0,0.0005178,120]
[394028903,1763200316621,-936.67,0.0005178,120]
[394028904,1763200316631,-500.0,0.0005178,120]
[394028905,1763200316641,-500.0,0.0005178,120]
[394028906,1763200316650,-649.89,0.0005178,120]
[394028907,1763200316659,-1776.75,0.0005178,120]
[394028908,1763200316668,-500.0,0.0005178,120]
[394028909,1763200316677,-500.0,0.0005178,120]
[394028910,1763200316687,-500.0,0.0005178,120]
[394028911,1763200316696,-500.0,0.0005178,120]
[394028912,1763200316705,-532.97,0.0005178,120]
[394028913,1763200316716,-500.0,0.0005178,120]
[394028914,1763200316726,-777.09,0.0005178,120]
[394028915,1763200316736,-500.0,0.0005178,120]
[394028916,1763200316746,-500.0,0.0005178,120]
[394028917,1763200316755,-500.0,0.0005178,120]
[394028918,1763200316764,-1276.7,0.0005178,7]
[394028919,1763200316775,-927.9,0.0005178,120]
[394028920,1763200316784,-500.0,0.0005178,120]
[394028921,1763200316794,-979.1,0.0005178,120]
[394028922,1763200316803,-769.66,0.0005178,120]
[394028923,1763200316812,-500.0,0.0005178,120]
[394028924,1763200316822,-505.80174734,0.0005178,120]
[394028925,1763200316832,-500.0,0.0005178,120]
[394028926,1763200316841,-500.0,0.0005178,120]
[394028927,1763200316850,-500.0,0.0005178,120]
[394028928,1763200316859,-500.0,0.0005178,120]
[394028929,1763200316868,-624.67,0.0005178,120]
[394028930,1763200316878,-609.02,0.0005178,120]
[394028931,1763200316887,-500.0,0.0005178,120]
[394028932,1763200316896,-500.0,0.0005178,120]
[394028933,1763200316906,-475.14008076,0.0005178,120]
[394028934,1763200316915,-500.0,0.0005178,120]
[394028935,1763200316924,-500.0,0.0005178,120]
[394028936,1763200316934,-500.0,0.0005178,120]
[394028937,1763200316944,-745.41,0.0005178,120]
[394028938,1763200316954,-500.0,0.0005178,120]
[394028939,1763200316963,-500.0,0.0005178,120]
[394028940,1763200316973,-500.0,0.0005178,120]
[394028941,1763200316983,-4568.1,0.0005178,3]
[394028942,1763200316992,-500.0,0.0005178,120]
[394028943,1763200317001,-1131.39,0.0005178,120]
[394028944,1763200317010,-500.0,0.0005178,120]
[394028945,1763200317020,-500.0,0.0005178,120]
[394028946,1763200317029,-500.0,0.0005178,120]
[394028947,1763200317038,-500.0,0.0005178,120]
[394028948,1763200317047,-797.3,0.0005178,120]
[394028949,1763200317056,-500.0,0.0005178,120]
[394028950,1763200317065,-849.34,0.0005178,120]
[394028951,1763200317074,-500.0,0.0005178,120]
[394028952,1763200317084,-500.0,0.0005178,120]
[394028953,1763200317093,-577.74,0.0005178,120]
[394028954,1763200317102,-647.88,0.0005178,120]
[394028955,1763200317111,-500.0,0.0005178,120]
[394028956,1763200317120,-566.74,0.0005178,120]
[394028957,1763200317129,-636.73,0.0005178,120]
[394028958,1763200317138,-500.0,0.0005178,30]
[394028959,1763200317147,-515.20859607,0.0005178,120]
[394028960,1763200317156,-500.0,0.0005178,120]
[394028961,1763200317165,-500.0,0.0005178,120]
[394028962,1763200317175,-1133.68,0.0005178,120]
[394028963,1763200317184,-500.0,0.0005178,120]
[394028964,1763200317193,-500.0,0.0005178,120]
[394028965,1763200317202,-1012.59,0.0005178,120]
[394028966,1763200317215,-500.0,0.0005178,120]
[394028967,1763200317223,-1236.1,0.0005178,120]
[394028968,1763200317232,-500.0,0.0005178,120]
[394028969,1763200317241,-800.22,0.0005178,120]
[394028970,1763200317250,-500.0,0.0005178,120]
[394028971,1763200317261,-815.37,0.0005178,120]
[394028972,1763200317270,-360.66,0.0005178,120]
[394028973,1763200317279,-500.0,0.0005178,120]
[394028974,1763200317290,-500.0,0.0005178,120]
[394028975,1763200317299,-1270.32,0.0005178,120]
[394028976,1763200317308,-617.48,0.0005178,120]
[394028977,1763200317318,-500.0,0.0005178,120]
[394028978,1763200317327,-510.76674388,0.0005178,120]
[394028979,1763200317336,-2708.03,0.0005178,120]
[394028980,1763200317345,-500.0,0.0005178,120]
[394028981,1763200317355,-500.0,0.0005178,120]
[394028982,1763200317365,-500.0,0.0005178,120]
[394028983,1763200317375,-500.0,0.0005178,120]
[394028984,1763200317384,-500.0,0.0005178,120]
[394028985,1763200317393,-1700.39,0.0005178,120]
[394028986,1763200317403,-845.92,0.0005178,120]
[394028987,1763200317412,-590.7,0.0005178,120]
[394028988,1763200317422,-464.39434893,0.0005178,120]
[394028989,1763200317432,-500.0,0.0005178,120]
[394028990,1763200317441,-500.0,0.0005178,7]
[394028991,1763200317451,-500.0,0.0005178,120]
[394028992,1763200317460,-595.56456413,0.0005178,120]
[394028993,1763200317469,-576.07,0.0005178,120]
[394028994,1763200317479,-500.0,0.0005178,120]
[394028995,1763200317488,-500.0,0.0005178,120]
[394028996,1763200317497,-500.0,0.0005178,120]
[394028997,1763200317506,-1000.0,0.0005178,2]
[394028998,1763200317515,-221.6,0.0005178,120]
[394028999,1763200317524,-1000.0,0.0005178,2]
[394029000,1763200317538,-500.0,0.0005178,120]
[394029001,1763200317547,-500.0,0.0005178,120]
[394029002,1763200317557,-812.44,0.0005178,2]
[394029003,1763200317566,-557.41,0.0005178,120]
[394029004,1763200317576,-1000.0,0.0005178,30]
[394029005,1763200317585,-550.0,0.00051781,120]
[394029006,1763200317594,-38266.00425398,0.000518,120]
[394029007,1763200317603,-289.187,0.00051945,120]
[394029008,1763200317742,-100022.629243,0.00052,120]
[394029009,1763200317752,-1000.0,0.00052,120]
[394029010,1763200317763,-2000.0,0.00052,120]
[394029011,1763200317773,-255.3594584,0.00052,120]
[394029012,1763200317782,-500.0,0.00052054,120]
[394029013,1763200317791,-687.74,0.00052054,120]
[394029014,1763200317800,-554.45,0.00052054,120]
[394029015,1763200317809,-500.0,0.00052054,120]
[394029016,1763200317819,-500.0,0.00052054,120]
[394029017,1763200317828,-264.66553016,0.00052054,120]
[394029018,1763200317837,-500.0,0.00052054,120]
[394029019,1763200317846,-582.92,0.00052054,120]
[394029020,1763200317855,-500.0,0.00052054,120]
[394029021,1763200317864,-790.87,0.00052054,120]
[394029022,1763200317873,-629.47,0.00052054,120]
[394029023,1763200317882,-673.94,0.00052054,120]
[394029024,1763200317892,-500.0,0.00052054,120]
[394029025,1763200317902,-758.17,0.00052054,120]
[394029026,1763200317911,-590.85,0.00052054,120]
[394029027,1763200317919,-500.0,0.00052054,120]
[394029028,1763200317930,-731.68,0.00052054,120]
[394029029,1763200317939,-571.3,0.00052054,120]
[394029030,1763200317948,-500.0,0.00052054,120]
[394029031,1763200317957,-500.0,0.00052054,120]
[394029032,1763200317966,-1090.76,0.00052054,7]
[394029033,1763200317975,-500.0,0.00052054,120]
[394029034,1763200317985,-199.63026171,0.00052054,120]
[394029035,1763200317994,-3400.85,0.00052054,2]
[394029036,1763200318004,-470.66894911,0.00052054,120]
[394029037,1763200318014,-1174.97,0.00052054,120]
[394029038,1763200318024,-618.7,0.00052054,120]
[394029039,1763200318039,-506.21,0.00052054,120]
[394029040,1763200318048,-500.0,0.00052054,120]
[394029041,1763200318057,-500.0,0.00052054,120]
[394029042,1763200318066,-536.43,0.00052054,120]
[394029043,1763200318075,-505.46,0.00052054,120]
[394029044,1763200318084,-500.0,0.00052054,120]
[394029045,1763200318093,-500.0,0.00052054,120]
[394029046,1763200318102,-500.0,0.00052054,120]
[394029047,1763200318110,-566.44,0.00052054,120]
[394029048,1763200318119,-829.99,0.00052054,120]
[394029049,1763200318128,-500.0,0.00052054,120]
[394029050,1763200318137,-500.0,0.00052054,120]
[394029051,1763200318146,-500.0,0.00052054,120]
[394029052,1763200318155,-500.0,0.00052054,120]
[394029053,1763200318163,-500.0,0.00052054,120]
[394029054,1763200318172,-500.0,0.00052054,120]
[394029055,1763200318181,-500.0,0.00052054,120]
[394029056,1763200318190,-546.38,0.00052054,120]
[394029057,1763200318199,-500.0,0.00052054,120]
[394029058,1763200318210,-785.26,0.00052054,120]
[394029059,1763200318221,-500.0,0.00052054,120]
[394029060,1763200318231,-609.50466356,0.00052054,120]
[394029061,1763200318240,-500.0,0.00052054,120]
[394029062,1763200318249,-509.59614682,0.00052054,120]
[394029063,1763200318259,-500.0,0.00052054,120]
[394029064,1763200318268,-607.97406536,0.00052054,120]
[394029065,1763200318279,-500.0,0.00052054,120]
[394029066,1763200318288,-500.0,0.00052054,120]
[394029067,1763200318297,-500.0,0.00052054,120]
[394029068,1763200318306,-500.0,0.00052054,120]
[394029069,1763200318315,-500.0,0.00052054,120]
[394029070,1763200318324,-500.0,0.00052054,120]
[394029071,1763200318333,-1165.61,0.00052054,120]
[394029072,1763200318342,-629.76,0.00052054,120]
[394029073,1763200318351,-500.0,0.00052054,120]
[394029074,1763200318360,-511.51,0.00052054,2]
[394029075,1763200318369,-500.0,0.00052054,120]
[394029076,1763200318378,-500.0,0.00052054,120]
[394029077,1763200318387,-520.37973753,0.00052054,120]
[394029078,1763200318396,-500.0,0.00052054,120]
[394029079,1763200318405,-500.0,0.00052054,120]
[394029080,1763200318414,-515.28,0.00052054,120]
[394029081,1763200318423,-506.23621391,0.00052054,120]
[394029082,1763200318432,-365.62566343,0.00052054,120]
[394029083,1763200318442,-500.0,0.00052054,120]
[394029084,1763200318451,-958.77,0.00052054,120]
[394029085,1763200318460,-500.0,0.00052054,120]
[394029086,1763200318469,-427.17184995,0.00052054,120]
[394029087,1763200318479,-593.86162922,0.00052054,120]
[394029088,1763200318488,-500.0,0.00052054,120]
[394029089,1763200318497,-500.0,0.00052054,120]
[394029090,1763200318506,-500.0,0.00052054,120]
[394029091,1763200318515,-500.0,0.00052054,120]
[394029092,1763200318525,-500.0,0.00052054,120]
[394029093,1763200318534,-500.0,0.00052054,120]
[394029094,1763200318543,-531.24,0.00052054,120]
[394029095,1763200318552,-500.0,0.00052054,120]
[394029096,1763200318561,-1312.52,0.00052054,120]
[394029097,1763200318570,-666.72,0.00052054,120]
[394029098,1763200318580,-500.0,0.00052054,120]
[394029099,1763200318589,-500.0,0.00052054,120]
[394029100,1763200318598,-500.0,0.00052054,120]
[394029101,1763200318607,-500.0,0.00052054,120]
[394029102,1763200318618,-500.0,0.00052054,120]
[394029103,1763200318627,-505.97,0.00052054,120]
[394029104,1763200318643,-500.0,0.00052054,120]
[394029105,1763200318660,-507.65,0.00052054,2]
[394029106,1763200318678,-500.0,0.00052054,120]
[394029107,1763200318696,-655.84,0.00052054,120]
[394029108,1763200318715,-500.0,0.00052054,120]
[394029109,1763200318731,-566.68,0.00052054,120]
[394029110,1763200318749,-500.0,0.00052054,120]
[394029111,1763200318763,-629.45,0.00052054,120]
[394029112,1763200318780,-500.0,0.00052054,120]
[394029113,1763200318799,-532.44,0.00052054,120]
[394029114,1763200318818,-517.42,0.00052054,120]
[394029115,1763200318831,-500.0,0.00052054,120]
[394029116,1763200318850,-512.08,0.00052054,120]
[394029117,1763200318864,-500.0,0.00052054,120]
[394029118,1763200318880,-948.59,0.00052054,120]
[394029119,1763200318895,-500.0,0.00052054,120]
[394029120,1763200318909,-1011.89,0.00052054,120]
[394029121,1763200318924,-875.77,0.00052054,120]
[394029122,1763200318938,-509.1790191,0.00052054,120]
[394029123,1763200318953,-500.0,0.00052054,120]
[394029124,1763200318968,-500.0,0.00052054,120]
[394029125,1763200318983,-500.0,0.00052054,120]
[394029126,1763200318997,-500.0,0.00052054,120]
[394029127,1763200319012,-500.0,0.00052054,120]
[394029128,1763200319028,-500.0,0.00052054,120]
[394029129,1763200319043,-604.95,0.00052054,120]
[394029130,1763200319058,-500.0,0.00052054,120]
[394029131,1763200319073,-564.94,0.00052054,120]
[394029132,1763200319088,-500.0,0.00052054,120]
[394029133,1763200319102,-500.0,0.00052054,120]
[394029134,1763200319117,-1119.68,0.00052054,120]
[394029135,1763200319134,-201.35700079,0.00052054,120]
[394029136,1763200319148,-1259.05,0.00052054,120]
[394029137,1763200319163,-865.15,0.00052054,120]
[394029138,1763200319177,-500.0,0.00052054,120]
[394029139,1763200319192,-955.73,0.00052054,120]
[394029140,1763200319207,-586.52705344,0.00052054,120]
[394029141,1763200319226,-500.0,0.00052054,120]
[394029142,1763200319240,-500.0,0.00052054,120]
[394029143,1763200319257,-500.0,0.00052054,21]
[394029144,1763200319272,-500.0,0.00052054,120]
[394029145,1763200319287,-500.0,0.00052054,120]
[394029146,1763200319301,-1298.83,0.00052054,120]
[394029147,1763200319316,-687.91,0.00052054,120]
[394029148,1763200319330,-500.0,0.00052054,120]
[394029149,1763200319344,-500.0,0.00052054,120]
[394029150,1763200319359,-1584.66,0.00052054,120]
[394029151,1763200319374,-500.0,0.00052054,120]
[394029152,1763200319390,-625.34,0.00052054,120]
[394029153,1763200319405,-500.0,0.00052054,120]
[394029154,1763200319422,-500.0,0.00052054,120]
[394029155,1763200319436,-500.0,0.00052054,120]
[394029156,1763200319452,-626.26,0.00052054,120]
[394029157,1763200319467,-776.15,0.00052054,120]
[394029158,1763200319482,-500.0,0.00052054,120]
[394029159,1763200319498,-1059.33,0.00052054,120]
[394029160,1763200319513,-500.0,0.00052054,120]
[394029161,1763200319529,-2689.19,0.00052054,120]
[394029162,1763200319544,-500.0,0.00052054,120]
[394029163,1763200319559,-1158.62,0.00052054,120]
[394029164,1763200319574,-520.26,0.00052054,120]
[394029165,1763200319588,-500.0,0.00052054,120]
[394029166,1763200319602,-500.0,0.00052054,120]
[394029167,1763200319617,-777.19,0.00052054,120]
[394029168,1763200319632,-500.0,0.00052054,120]
[394029169,1763200319650,-500.0,0.00052054,120]
[394029170,1763200319666,-500.0,0.00052054,120]
[394029171,1763200319681,-1619.88,0.00052054,30]
[394029172,1763200319695,-1089.69,0.00052054,120]
[394029173,1763200319710,-500.0,0.00052054,120]
[394029174,1763200319725,-576.07,0.00052054,120]
[394029175,1763200319740,-500.0,0.00052054,120]
[394029176,1763200319755,-1298.65,0.00052054,120]
[394029177,1763200319769,-527.42,0.00052054,120]
[394029178,1763200319784,-500.0,0.00052054,120]
[394029179,1763200319798,-2380.54,0.00052054,120]
[394029180,1763200319812,-1477.9,0.00052054,120]
[394029181,1763200319827,-500.0,0.00052054,120]
[394029182,1763200319841,-500.0,0.00052054,120]
[394029183,1763200319854,-979.94,0.00052054,120]
[394029184,1763200319869,-745.02,0.00052054,120]
[394029185,1763200319883,-500.0,0.00052054,120]
[394029186,1763200319896,-500.41,0.00052054,120]
[394029187,1763200319910,-500.0,0.00052054,120]
[394029188,1763200319924,-500.0,0.00052054,120]
[394029189,1763200319939,-500.0,0.00052054,120]
[394029190,1763200319953,-500.0,0.00052054,120]
[394029191,1763200319968,-507.72,0.00052054,120]
[394029192,1763200319982,-539.7,0.00052054,120]
[394029193,1763200319996,-789.21,0.00052054,120]
[394029194,1763200320010,-500.0,0.00052054,120]
[394029195,1763200320028,-500.0,0.00052054,120]
[394029196,1763200320042,-937.06,0.00052054,120]
[394029197,1763200320056,-500.0,0.00052054,120]
[394029198,1763200320072,-500.0,0.00052054,120]
[394029199,1763200320258,-523.49,0.00052054,120]
[394029200,1763200320268,-571.26,0.00052054,120]
[394029201,1763200320278,-500.0,0.00052054,120]
[394029202,1763200320289,-840.74,0.00052054,120]
[394029203,1763200320298,-839.73,0.00052054,120]
[394029204,1763200320307,-500.0,0.00052054,120]
[394029205,1763200320317,-500.0,0.00052054,120]
[394029206,1763200320326,-548.3,0.00052054,120]
[394029207,1763200320335,-533.64,0.00052054,120]
[394029208,1763200320345,-500.0,0.00052054,120]
[394029209,1763200320354,-500.0,0.00052054,120]
[394029210,1763200320364,-1390.62,0.00052054,120]
[394029211,1763200320373,-500.0,0.00052054,120]
[394029212,1763200320382,-572.61,0.00052054,120]
[394029213,1763200320392,-1276.71,0.00052054,120]
[394029214,1763200320401,-1188.94,0.00052054,120]
[394029215,1763200320412,-1077.77,0.00052054,120]
[394029216,1763200320423,-500.0,0.00052054,120]
[394029217,1763200320433,-500.0,0.00052054,120]
[394029218,1763200320444,-1791.91,0.00052054,120]
[394029219,1763200320454,-517.29561192,0.00052054,120]
[394029220,1763200320464,-500.0,0.00052054,120]
[394029221,1763200320474,-500.0,0.00052054,120]
[394029222,1763200320484,-500.0,0.00052054,120]
[394029223,1763200320493,-281.21987251,0.00052054,120]
[394029224,1763200320503,-500.0,0.00052054,120]
[394029225,1763200320512,-1017.14,0.00052054,120]
[394029226,1763200320522,-500.0,0.00052054,120]
[394029227,1763200320534,-500.0,0.00052054,120]
[394029228,1763200320543,-936.67,0.00052054,120]
[394029229,1763200320552,-500.0,0.00052054,120]
[394029230,1763200320562,-500.0,0.00052054,120]
[394029231,1763200320571,-649.89,0.00052054,120]
[394029232,1763200320580,-1776.75,0.00052054,120]
[394029233,1763200320590,-500.0,0.00052054,120]
[394029234,1763200320599,-500.0,0.00052054,120]
[394029235,1763200320608,-500.0,0.00052054,120]
[394029236,1763200320618,-500.0,0.00052054,120]
[394029237,1763200320627,-532.97,0.00052054,120]
[394029238,1763200320636,-500.0,0.00052054,120]
[394029239,1763200320645,-777.09,0.00052054,120]
[394029240,1763200320655,-392.74111639,0.00052054,120]
[394029241,1763200320664,-500.0,0.00052054,120]
[394029242,1763200320674,-500.0,0.00052054,120]
[394029243,1763200320683,-1276.7,0.00052054,7]
[394029244,1763200320693,-927.9,0.00052054,120]
[394029245,1763200320702,-500.0,0.00052054,120]
[394029246,1763200320712,-979.1,0.00052054,120]
[394029247,1763200320721,-769.66,0.00052054,120]
[394029248,1763200320730,-500.0,0.00052054,120]
[394029249,1763200320740,-500.0,0.00052054,120]
[394029250,1763200320749,-500.0,0.00052054,120]
[394029251,1763200320759,-508.10690741,0.00052054,120]
[394029252,1763200320769,-500.0,0.00052054,120]
[394029253,1763200320779,-624.67,0.00052054,120]
[394029254,1763200320788,-609.02,0.00052054,120]
[394029255,1763200320797,-500.0,0.00052054,120]
[394029256,1763200320807,-500.0,0.00052054,120]
[394029257,1763200320816,-500.0,0.00052054,120]
[394029258,1763200320825,-500.0,0.00052054,120]
[394029259,1763200320834,-500.0,0.00052054,120]
[394029260,1763200320843,-745.41,0.00052054,120]
[394029261,1763200320852,-500.0,0.00052054,120]
[394029262,1763200320861,-500.0,0.00052054,120]
[394029263,1763200320870,-500.0,0.00052054,120]
[394029264,1763200320879,-4568.1,0.00052054,3]
[394029265,1763200320888,-500.0,0.00052054,120]
[394029266,1763200320897,-1131.39,0.00052054,120]
[394029267,1763200320906,-500.0,0.00052054,120]
[394029268,1763200320915,-500.0,0.00052054,120]
[394029269,1763200320924,-500.0,0.00052054,120]
[394029270,1763200320934,-500.0,0.00052054,120]
[394029271,1763200320943,-797.3,0.00052054,120]
[394029272,1763200320952,-510.16556454,0.00052054,120]
[394029273,1763200320961,-849.34,0.00052054,120]
[394029274,1763200320971,-558.05417466,0.00052054,120]
[394029275,1763200320980,-500.0,0.00052054,120]
[394029276,1763200320989,-577.74,0.00052054,120]
[394029277,1763200320998,-647.88,0.00052054,120]
[394029278,1763200321007,-500.0,0.00052054,120]
[394029279,1763200321016,-566.74,0.00052054,120]
[394029280,1763200321026,-636.73,0.00052054,120]
[394029281,1763200321036,-500.0,0.00052054,30]
[394029282,1763200321050,-500.0,0.00052054,120]
[394029283,1763200321059,-500.0,0.00052054,120]
[394029284,1763200321070,-1133.68,0.00052054,120]
[394029285,1763200321083,-500.0,0.00052054,120]
[394029286,1763200321092,-500.0,0.00052054,120]
[394029287,1763200321101,-1012.59,0.00052054,120]
[394029288,1763200321110,-500.0,0.00052054,120]
[394029289,1763200321119,-1236.1,0.00052054,120]
[394029290,1763200321128,-500.0,0.00052054,120]
[394029291,1763200321137,-800.22,0.00052054,120]
[394029292,1763200321146,-500.0,0.00052054,120]
[394029293,1763200321155,-815.37,0.00052054,120]
[394029294,1763200321165,-471.18744611,0.00052054,120]
[394029295,1763200321175,-500.0,0.00052054,120]
[394029296,1763200321184,-1270.32,0.00052054,120]
[394029297,1763200321193,-500.0,0.00052054,120]
[394029298,1763200321201,-617.48,0.00052054,120]
[394029299,1763200321214,-2708.03,0.00052054,120]
[394029300,1763200321224,-500.0,0.00052054,120]
[394029301,1763200321233,-500.0,0.00052054,120]
[394029302,1763200321242,-500.0,0.00052054,120]
[394029303,1763200321252,-500.0,0.00052054,120]
[394029304,1763200321261,-500.0,0.00052054,120]
[394029305,1763200321270,-1700.39,0.00052054,120]
[394029306,1763200321280,-845.92,0.00052054,120]
[394029307,1763200321291,-590.7,0.00052054,120]
[394029308,1763200321300,-500.0,0.00052054,120]
[394029309,1763200321309,-500.0,0.00052054,7]
[394029310,1763200321318,-500.0,0.00052054,120]
[394029311,1763200321327,-576.07,0.00052054,120]
[394029312,1763200321336,-301.25454024,0.00052054,120]
[394029313,1763200321345,-500.0,0.00052054,120]